bitfinex-derivatives/quotes_SOLF0:USTF0_20250803
["timestamp","ask_amount","ask_price","bid_price","bid_amount"]
[1754214339651,3.43,161.22,161.19,12.94620274]
[1754214340547,3.43,161.22,161.19,9.59620274]
[1754214340753,3.43,161.22,161.2,3.35]
[1754214341758,3.43,161.22,161.2,9.5539]
[1754214342252,3.43,161.22,161.2,6.2039]
[1754214342459,3.43,161.22,161.21,3.35]
[1754214346961,3.43,161.22,161.2,9.59580274]
[1754214347152,3.43,161.21,161.19,12.94630274]
[1754214347357,3.43,161.21,161.19,6.74190274]
[1754214348758,6.2037,161.21,161.19,6.74190274]
[1754214348963,3.43,161.2,161.19,6.74190274]
[1754214349359,3.43,161.2,161.17,9.59700274]
[1754214349659,3.43,161.2,161.18,3.35]
[1754214350454,3.43,161.2,161.19,3.35]
[1754214351663,3.43,161.2,161.19,9.5544]
[1754214351863,6.203,161.23,161.19,12.94630274]
[1754214352058,3.43,161.21,161.2,3.35]
[1754214361867,3.45,161.2,161.18,3.45]
[1754214366074,3.45,161.19,161.18,3.45]
[1754214367677,9.6544,161.19,161.18,3.45]
[1754214368073,3.45,161.19,161.18,3.45]
[1754214370278,9.6544,161.19,161.18,3.45]
[1754214370776,3.39190274,161.21,161.17,3.45]
[1754214370974,9.6548,161.18,161.17,3.45]
[1754214371180,3.45,161.18,161.17,3.45]
[1754214385889,3.45,161.19,161.17,3.45]
[1754214387883,9.6545,161.19,161.17,3.45]
[1754214388087,3.45,161.18,161.17,3.45]
[1754214393207,9.59560274,161.21,161.17,3.45]
[1754214393500,9.59560274,161.21,161.18,3.36]
[1754214393501,3.21,161.19,161.18,3.36]
[1754214394402,112.44,161.24,161.18,6.75190274]
[1754214394403,115.65,161.24,161.18,6.75190274]
[1754214394602,3.21,161.23,161.18,3.39190274]
[1754214394802,3.39190274,161.22,161.18,11.96093115]
[1754214395001,3.21,161.21,161.18,3.36]
[1754214395302,3.21,161.19,161.18,3.36]
[1754214403519,9.4144,161.19,161.18,3.36]
[1754214410021,3.21,161.18,161.16,136.59878543]
[1754214410419,9.4152,161.17,161.16,136.59878543]
[1754214413325,3.21,161.17,161.16,136.59878543]
[1754214414022,9.4152,161.17,161.16,136.59878543]
[1754214415820,3.21,161.17,161.16,136.59878543]
[1754214416526,3.21,161.17,161.16,8.56902841]
[1754214423626,9.4152,161.17,161.16,8.56902841]
[1754214425827,3.21,161.17,161.16,8.56902841]
[1754214426024,3.21,161.17,161.16,11.96093115]
[1754214426827,3.21,161.17,161.16,6.75190274]
[1754214427727,3.21,161.17,161.16,3.36]
[1754214428029,3.21,161.17,161.16,6.75190274]
[1754214429629,3.21,161.17,161.16,11.9827218]
[1754214430229,3.21,161.17,161.16,6.75190274]
[1754214433626,3.45,161.2,161.17,3.35]
[1754214433826,3.45,161.2,161.19,3.35]
[1754214436732,6.2039,161.21,161.19,3.35]
[1754214437126,3.45,161.2,161.19,3.35]
[1754214437528,3.45,161.19,161.18,11.9725361]
[1754214440034,3.45,161.19,161.18,6.74190274]
[1754214445639,3.45,161.19,161.18,11.9725361]
[1754214456445,9.6544,161.19,161.18,5.23063336]
[1754214456644,3.45,161.19,161.17,5.23063336]
[1754214456846,3.45,161.19,161.17,8.57063336]
[1754214457044,3.3,161.18,161.17,8.57063336]
[1754214473260,3.3,161.18,161.17,3.34]
[1754214477068,3.3,161.2,161.18,3.34]
[1754214477268,3.3,161.2,161.19,8.57058925]
[1754214477969,9.5041,161.2,161.19,8.57058925]
[1754214478970,3.3,161.2,161.19,8.57058925]
[1754214480569,9.504,161.2,161.19,8.57058925]
[1754214481571,9.504,161.2,161.19,5.23058925]
[1754214481869,9.504,161.2,161.19,8.49058925]
[1754214482471,9.504,161.2,161.19,5.23058925]
[1754214482667,9.504,161.2,161.18,11.88249199]
[1754214482973,3.4,161.19,161.18,11.88249199]
[1754214491577,3.4,161.19,161.18,6.65190274]
[1754214491778,3.4,161.19,161.18,11.88040076]
[1754214494186,3.4,161.19,161.18,6.65190274]
[1754214495794,6.2037,161.21,161.18,3.39190274]
[1754214495989,3.4,161.2,161.19,8.48990305]
[1754214498194,6.2033,161.22,161.19,8.48990305]
[1754214498393,6.2033,161.22,161.21,3.26]
[1754214498596,211.46298813,161.25,161.21,3.26]
[1754214499090,3.4,161.22,161.21,3.26]
[1754214502789,3.4,161.24,161.21,5.22990305]
[1754214503094,112.42,161.26,161.24,3.26]
[1754214503295,6.2016,161.27,161.25,3.39190274]
[1754214503501,9.6016,161.27,161.26,3.26]
[1754214503799,3.4,161.27,161.26,3.26]
[1754214504001,3.4,161.28,161.26,3.26]
[1754214504199,3.4,161.28,161.27,6.65190274]
[1754214505700,9.601,161.28,161.27,6.65190274]
[1754214507702,9.601,161.28,161.27,3.39190274]
[1754214509002,9.601,161.28,161.27,6.65190274]
[1754214514706,3.4,161.28,161.27,6.65190274]
[1754214516005,3.5,161.28,161.27,6.65190274]
[1754214518001,9.7007,161.29,161.28,3.42]
[1754214519608,3.5,161.29,161.28,3.42]
[1754214519805,3.39190274,161.34,161.28,3.42]
[1754214520006,3.5,161.33,161.3,3.42]
[1754214522215,9.6998,161.31,161.3,3.42]
[1754214523805,6.2002,161.3,161.29,3.39190274]
[1754214524111,9.7002,161.3,161.29,3.39190274]
[1754214525712,9.7002,161.3,161.29,6.81190274]
[1754214528411,9.7002,161.3,161.29,3.39190274]
[1754214529716,9.7006,161.29,161.28,3.42]
[1754214529916,3.5,161.29,161.27,6.81190274]
[1754214531216,6.2012,161.28,161.27,6.81190274]
[1754214531416,9.7012,161.28,161.27,6.81190274]
[1754214534625,9.7012,161.28,161.27,3.42]
[1754214534822,9.7012,161.28,161.27,6.81190274]
[1754214536823,9.7012,161.28,161.27,3.39190274]
[1754214537019,3.5,161.27,161.23,3.39190274]
[1754214537224,3.5,161.27,161.24,3.42]
[1754214537727,6.2021,161.25,161.24,3.42]
[1754214537921,3.5,161.27,161.25,3.42]
[1754214538121,3.5,161.27,161.26,3.42]
[1754214539426,9.7014,161.27,161.26,3.42]
[1754214540017,6.202,161.26,161.25,3.42]
[1754214540225,9.702,161.26,161.25,3.42]
[1754214542625,6.2021,161.25,161.24,3.45]
[1754214542825,3.27,161.24,161.21,8.63588179]
[1754214543121,3.27,161.22,161.2,24.14313]
[1754214543322,6.2037,161.21,161.2,24.14313]
[1754214543519,9.4737,161.21,161.2,24.14313]
[1754214553136,6.2037,161.21,161.2,24.14313]
[1754214555242,9.4737,161.21,161.2,24.14313]
[1754214559747,9.4733,161.22,161.21,3.45]
[1754214560947,6.203,161.23,161.21,3.45]
[1754214561139,9.473,161.23,161.21,3.45]
[1754214561646,6.2033,161.22,161.21,3.45]
[1754214561843,9.4733,161.22,161.21,3.45]
[1754214562044,6.2033,161.22,161.2,24.08503274]
[1754214562345,6.2033,161.22,161.21,3.45]
[1754214562542,9.4733,161.22,161.21,3.45]
[1754214565346,6.2037,161.21,161.2,27.53503274]
[1754214565551,9.4737,161.21,161.2,27.53503274]
[1754214567450,3.27,161.21,161.2,27.53503274]
[1754214568152,9.4734,161.22,161.2,24.08503274]
[1754214568351,9.4734,161.22,161.21,3.45]
[1754214569748,3.27,161.22,161.2,20.69313]
[1754214570052,9.4737,161.21,161.2,20.69313]
[1754214571147,9.4737,161.21,161.2,24.14313]
[1754214572754,9.4737,161.21,161.2,20.69313]
[1754214573254,9.4737,161.21,161.2,23.89313]
[1754214578651,9.4737,161.21,161.2,29.07901179]
[1754214579059,9.5434,161.22,161.21,3.2]
[1754214579263,6.2034,161.22,161.21,3.2]
[1754214579459,9.5434,161.22,161.21,3.2]
[1754214580261,9.5434,161.22,161.2,25.90981601]
[1754214580262,9.5437,161.21,161.2,25.90981601]
[1754214580852,9.5437,161.21,161.2,20.69313]
[1754214581058,9.5437,161.21,161.2,23.89313]
[1754214581258,9.5437,161.21,161.2,29.10981601]
[1754214584567,9.5437,161.21,161.2,25.90981601]
[1754214585767,9.5437,161.21,161.2,29.10981601]
[1754214588266,121.9237,161.21,161.2,29.10981601]
[1754214588670,121.9237,161.21,161.2,23.89313]
[1754214593273,218.09440623,161.24,161.21,3.2]
[1754214593274,221.43440623,161.24,161.21,3.2]
[1754214593468,333.81440623,161.24,161.22,8.61687953]
[1754214593676,333.81440623,161.24,161.23,3.2]
[1754214593973,3.34,161.26,161.23,3.2]
[1754214594168,3.34,161.26,161.25,8.61438389]
[1754214594472,3.34,161.26,161.25,11.81438389]
[1754214595170,9.5419,161.26,161.25,6.59190274]
[1754214596877,9.5419,161.26,161.25,11.81438389]
[1754214597277,9.5419,161.26,161.25,6.59190274]
[1754214601382,9.5419,161.26,161.25,3.2]
[1754214605081,6.2022,161.25,161.24,6.91190274]
[1754214605281,9.6422,161.25,161.24,6.91190274]
[1754214605780,115.8,161.25,161.24,6.91190274]
[1754214606181,112.36,161.25,161.24,3.39190274]
[1754214606389,115.8,161.25,161.24,6.91190274]
[1754214607083,122.0021,161.25,161.24,6.91190274]
[1754214608986,122.0021,161.25,161.22,12.12663512]
[1754214608987,115.8,161.25,161.22,12.12663512]
[1754214609189,3.44,161.23,161.22,3.52]
[1754214609486,9.6433,161.22,161.21,8.73473238]
[1754214609787,3.44,161.22,161.21,5.21473238]
[1754214610086,9.6436,161.22,161.2,32.81976512]
[1754214610286,115.82,161.21,161.2,24.21313]
[1754214610693,122.0237,161.21,161.2,20.69313]
[1754214611489,122.0237,161.21,161.2,24.21313]
[1754214622205,122.0237,161.21,161.2,20.69313]
[1754214623510,125.41560274,161.21,161.2,20.69313]
[1754214625907,125.41560274,161.21,161.2,24.21313]
[1754214626312,122.0237,161.21,161.2,24.21313]
[1754214626907,122.0237,161.21,161.2,20.69313]
[1754214627115,125.41560274,161.21,161.2,20.69313]
[1754214627409,125.41560274,161.21,161.2,9.34923]
[1754214627610,125.41560274,161.21,161.2,3e-05]
[1754214634519,122.0237,161.21,161.2,3.30003]
[1754214634712,125.41560274,161.21,161.2,3.3]
[1754214637419,6.2049,161.18,161.16,3.39190274]
[1754214637620,112.38,161.17,161.16,3.39190274]
[1754214638115,112.38,161.17,161.16,6.69190274]
[1754214640818,118.5852,161.17,161.16,6.69190274]
[1754214642419,112.38,161.17,161.16,6.69190274]
[1754214643117,112.38,161.17,161.16,11.90663512]
[1754214645013,112.38,161.19,161.17,3.3]
[1754214645212,112.38,161.2,161.19,3.3]
[1754214646217,112.38,161.2,161.19,9.5044]
[1754214647317,112.38,161.2,161.19,3.3]
[1754214650118,3.26,161.22,161.19,9.5042]
[1754214650318,115.64,161.22,161.21,3.3]
[1754214650722,112.38,161.22,161.21,8.51035221]
[1754214650921,112.38,161.23,161.21,5.21035221]
[1754214651122,112.38,161.23,161.22,6.69190274]
[1754214651422,3.26,161.25,161.23,3.3]
[1754214651423,115.64,161.25,161.23,3.3]
[1754214651623,115.64,161.25,161.24,6.69190274]
[1754214653428,121.8421,161.25,161.24,3.39190274]
[1754214657320,118.5821,161.25,161.22,8.60225495]
[1754214657626,3.26,161.23,161.22,3.39190274]
[1754214657933,115.64,161.23,161.22,3.39190274]
[1754214658329,115.64,161.23,161.22,6.69190274]
[1754214663430,121.8429,161.23,161.22,6.69190274]
[1754214663631,121.8429,161.23,161.22,3.3]
[1754214663929,121.8429,161.23,161.22,6.69190274]
[1754214664429,115.64,161.23,161.22,6.69190274]
[1754214671033,121.8429,161.23,161.22,6.69190274]
[1754214671830,121.8429,161.23,161.22,3.39190274]
[1754214673039,121.8429,161.23,161.22,6.75190274]
[1754214673538,115.64,161.23,161.22,6.75190274]
[1754214684160,115.64,161.23,161.22,11.96225495]
[1754214686046,115.64,161.23,161.22,6.75190274]
[1754214687259,115.64,161.23,161.22,11.96225495]
[1754214688657,112.38,161.23,161.22,11.96225495]
[1754214689360,112.38,161.23,161.22,12.95520274]
[1754214689554,112.38,161.23,161.22,6.75190274]
[1754214690062,112.38,161.23,161.22,12.95520274]
[1754214690558,112.38,161.23,161.22,6.75190274]
[1754214691659,112.38,161.23,161.22,12.95520274]
[1754214692760,115.55,161.25,161.23,3.44]
[1754214692960,3.21,161.24,161.23,5.22231424]
[1754214693165,3.21,161.24,161.22,16.56379871]
[1754214693667,3.21,161.24,161.23,8.66338386]
[1754214693865,3.21,161.24,161.23,12.0552866]
[1754214695467,3.21,161.24,161.23,6.83190274]
[1754214697767,6.2022,161.25,161.21,16.61219597]
[1754214697963,118.5422,161.25,161.24,12.05696937]
[1754214698365,121.7522,161.25,161.24,12.05696937]
[1754214698770,121.7522,161.25,161.24,8.61696937]
[1754214699463,121.7522,161.25,161.24,5.22506663]
[1754214699968,6.2025,161.24,161.23,5.22506663]
[1754214700269,9.4125,161.24,161.23,5.22506663]
[1754214702558,9.4129,161.23,161.22,5.22506663]
[1754214702763,9.4129,161.23,161.2,13.80049871]
[1754214702764,3.21,161.22,161.21,5.22506663]
[1754214704165,9.4133,161.22,161.21,5.22506663]
[1754214704676,9.4133,161.22,161.2,5.22506663]
[1754214704677,3.21,161.22,161.2,5.22506663]
[1754214704867,121.8137,161.21,161.2,5.22506663]
[1754214706672,9.4141,161.2,161.19,8.66506663]
[1754214707480,9.4141,161.2,161.19,5.22506663]
[1754214707677,3.21,161.19,161.17,5.22506663]
[1754214707875,115.63,161.18,161.17,5.22506663]
[1754214708068,3.21,161.17,161.15,5.22506663]
[1754214708269,115.65,161.16,161.14,8.66506663]
[1754214708470,115.67,161.15,161.14,5.22506663]
[1754214708767,112.46,161.15,161.14,8.61696937]
[1754214708974,112.46,161.15,161.14,3.39190274]
[1754214709477,115.67,161.16,161.15,3.44]
[1754214709775,112.46,161.16,161.15,3.44]
[1754214711776,115.67,161.16,161.15,3.44]
[1754214711973,3.21,161.15,161.14,6.83190274]
[1754214717376,115.67,161.16,161.15,3.44]
[1754214717577,112.52,161.17,161.15,3.44]
[1754214717783,112.52,161.17,161.16,3.39190274]
[1754214717978,3.21,161.18,161.16,3.39190274]
[1754214718280,115.75,161.19,161.17,3.44]
[1754214718585,121.9545,161.19,161.17,3.39190274]
[1754214718776,3.21,161.18,161.17,6.83190274]
[1754214724094,9.4148,161.18,161.17,6.83190274]
[1754214724292,6.2048,161.18,161.17,6.83190274]
[1754214724592,115.88,161.19,161.18,3.44]
[1754214725292,122.0846,161.19,161.18,3.44]
[1754214732295,9.5448,161.18,161.17,6.83190274]
[1754214733493,6.2052,161.17,161.16,3.39190274]
[1754214733696,122.0052,161.17,161.16,6.83190274]
[1754214734697,115.8,161.17,161.16,6.83190274]
[1754214737497,115.8,161.17,161.16,3.44]
[1754214737701,115.8,161.17,161.16,6.83190274]
[1754214738106,115.8,161.17,161.16,3.44]
[1754214738302,115.8,161.17,161.16,6.83190274]
[1754214739206,122.0052,161.17,161.16,6.83190274]
[1754214739602,115.8,161.17,161.14,5.21854901]
[1754214739808,3.34,161.15,161.14,3.44]
[1754214740001,115.78,161.15,161.14,3.44]
[1754214741205,9.5464,161.14,161.13,6.83190274]
[1754214741898,9.5464,161.14,161.13,3.44]
[1754214742100,9.5464,161.14,161.13,6.83190274]
[1754214742904,9.5464,161.14,161.13,3.39190274]
[1754214743108,3.34,161.14,161.11,8.65854901]
[1754214743404,3.34,161.12,161.08,8.61045175]
[1754214743601,3.34,161.1,161.08,3.39190274]
[1754214743797,115.88,161.09,161.08,6.83190274]
[1754214744106,116.02,161.09,161.08,3.44]
[1754214744806,122.2283,161.09,161.08,3.44]
[1754214746406,116.02,161.09,161.08,3.44]
[1754214746812,122.2283,161.09,161.08,3.44]
[1754214749210,116.02,161.09,161.08,3.44]
[1754214758108,3.19,161.22,161.08,3.44]
[1754214758309,3.19,161.15,161.11,3.39190274]
[1754214758512,115.83,161.14,161.13,3.44]
[1754214758909,6.2068,161.13,161.12,3.44]
[1754214759102,3.19,161.13,161.12,3.44]
[1754214759510,115.83,161.14,161.12,3.44]
[1754214759806,115.83,161.14,161.11,9.59930274]
[1754214759807,115.83,161.14,161.13,6.83190274]
[1754214766821,3.19,161.14,161.13,6.83190274]
[1754214767012,115.83,161.15,161.13,13.03870274]
[1754214767214,115.83,161.15,161.14,6.83190274]
[1754214769120,115.83,161.15,161.14,3.39190274]
[1754214772923,115.83,161.15,161.14,6.83190274]
[1754214779422,115.83,161.15,161.14,3.39190274]
[1754214779620,115.83,161.15,161.13,3.44]
[1754214779921,3.19,161.14,161.13,6.83190274]
[1754214783632,3.19,161.14,161.11,8.59141149]
[1754214783833,3.29,161.12,161.11,8.59141149]
[1754214784225,3.29,161.12,161.11,12.01141149]
[1754214784523,3.29,161.12,161.11,8.61950875]
[1754214784724,3.29,161.12,161.11,12.01141149]
[1754214784921,3.29,161.12,161.11,6.81190274]
[1754214786030,3.29,161.12,161.11,3.39190274]
[1754214786742,3.29,161.12,161.1,3.42]
[1754214787044,3.29,161.12,161.1,6.81190274]
[1754214787240,3.29,161.12,161.1,3.39190274]
[1754214787445,3.29,161.11,161.1,3.39190274]
[1754214788144,3.29,161.11,161.1,6.81190274]
[1754214789748,3.29,161.11,161.1,3.42]
[1754214795051,3.29,161.11,161.1,8.61950875]
[1754214795855,112.58,161.13,161.1,8.61950875]
[1754214796152,3.29,161.12,161.11,3.42]
[1754214798352,112.58,161.13,161.11,5.19950875]
[1754214798653,115.87,161.13,161.12,8.61950875]
[1754214800154,115.87,161.13,161.12,8.63583729]
[1754214802057,115.87,161.13,161.12,3.42]
[1754214802259,115.87,161.13,161.12,5.21583729]
[1754214803856,3.29,161.12,161.11,12.02774003]
[1754214804556,3.29,161.12,161.11,6.81190274]
[1754214806854,112.58,161.13,161.11,6.81190274]
[1754214807059,115.87,161.13,161.12,8.63893543]
[1754214809754,118.7868,161.13,161.11,5.21893543]
[1754214809957,3.29,161.12,161.11,8.63893543]
[1754214810260,3.29,161.12,161.11,12.03083817]
[1754214814064,3.29,161.12,161.11,8.61083817]
[1754214814266,3.29,161.12,161.11,5.21893543]
[1754214814864,122.1171,161.12,161.11,5.21893543]
[1754214815254,3.43,161.11,161.09,10.28177568]
[1754214815458,3.43,161.11,161.1,5.21883633]
[1754214816060,9.6375,161.11,161.1,5.21883633]
[1754214816261,6.2075,161.11,161.08,3.35]
[1754214816461,3.43,161.1,161.08,3.35]
[1754214816661,116.03,161.09,161.08,3.35]
[1754214819173,116.03,161.09,161.08,9.5587]
[1754214819471,112.6,161.09,161.08,9.5587]
[1754214820060,112.58,161.11,161.09,6.2081]
[1754214820265,116.01,161.11,161.1,3.35]
[1754214822167,116.01,161.11,161.1,9.5579]
[1754214832084,116.01,161.11,161.1,6.2079]
[1754214832277,116.01,161.11,161.1,9.5579]
[1754214834084,3.43,161.11,161.1,9.5579]
[1754214836286,112.48,161.12,161.11,9.5575]
[1754214836487,115.91,161.12,161.11,12.94940274]
[1754214839587,112.5,161.15,161.13,3.35]
[1754214839786,3.43,161.14,161.13,3.35]
[1754214840288,3.43,161.14,161.11,6.74190274]
[1754214841288,3.43,161.14,161.11,3.39190274]
[1754214841588,3.43,161.13,161.11,6.74190274]
[1754214842385,3.41,161.12,161.1,6.2077]
[1754214842782,3.41,161.12,161.11,9.4575]
[1754214846592,3.41,161.12,161.11,12.84940274]
[1754214851892,3.41,161.12,161.11,6.64190274]
[1754214852098,3.41,161.12,161.1,12.84970274]
[1754214852298,3.41,161.12,161.11,3.25]
[1754214857000,3.41,161.12,161.11,9.4575]
[1754214857502,3.41,161.13,161.11,6.2075]
[1754214857801,3.41,161.13,161.12,3.25]
[1754214861202,3.41,161.12,161.11,3.25]
[1754214872018,3.41,161.12,161.11,10.18177568]
[1754214873113,3.41,161.12,161.11,3.25]
[1754214897341,9.6171,161.12,161.11,3.25]
[1754214898439,3.32,161.11,161.1,6.93177568]
[1754214898636,3.32,161.11,161.1,10.21177568]
[1754214902339,3.31,161.12,161.1,10.21177568]
[1754214902638,3.31,161.12,161.11,3.37]
[1754214904740,6.2069,161.13,161.11,3.37]
[1754214904944,3.31,161.12,161.11,3.37]
[1754214912747,6.2069,161.13,161.11,3.37]
[1754214912941,9.5169,161.13,161.12,8.59343892]
[1754214913747,6.2069,161.13,161.12,5.22343892]
[1754214914045,3.31,161.16,161.12,3.37]
[1754214914241,3.31,161.16,161.14,5.22257056]
[1754214914448,3.31,161.16,161.15,3.37]
[1754214914749,6.206,161.15,161.14,8.59257056]
[1754214914953,9.516,161.15,161.14,8.59257056]
[1754214917053,3.31,161.15,161.14,8.59257056]
[1754214917450,3.31,161.15,161.14,3.37]
[1754214918953,3.31,161.15,161.14,8.59257056]
[1754214920446,3.31,161.15,161.14,3.37]
[1754214922158,3.31,161.15,161.14,8.59257056]
[1754214922558,3.31,161.15,161.14,3.37]
[1754214924157,3.31,161.15,161.14,8.59257056]
[1754214924351,3.31,161.17,161.15,3.37]
[1754214924551,6.2053,161.17,161.15,3.37]
[1754214924756,3.31,161.16,161.15,3.37]
[1754214927664,3.31,161.16,161.14,5.22257056]
[1754214927964,3.31,161.16,161.14,8.59257056]
[1754214928568,3.31,161.15,161.13,5.22257056]
[1754214929274,3.31,161.15,161.13,8.59257056]
[1754214930871,3.31,161.15,161.13,5.22257056]
[1754214931072,3.31,161.15,161.12,5.22257056]
[1754214931270,3.31,161.15,161.11,8.59257056]
[1754214932271,6.2067,161.14,161.11,8.59257056]
[1754214932470,3.22,161.13,161.11,8.59257056]
[1754214932673,9.4268,161.13,161.11,8.59257056]
[1754214932875,3.22,161.12,161.11,8.59257056]
[1754214937580,3.22,161.12,161.11,14.80007056]
[1754214937772,3.22,161.12,161.11,8.59257056]
[1754214938881,3.22,161.13,161.12,3.35]
[1754214945081,3.22,161.13,161.12,8.57257056]
[1754214945585,3.22,161.13,161.12,3.35]
[1754214947286,9.4268,161.13,161.12,3.35]
[1754214949888,3.22,161.12,161.11,8.57257056]
[1754214959895,6.2068,161.13,161.11,8.57257056]
[1754214960097,9.4268,161.13,161.12,3.35]
[1754214960394,3.22,161.17,161.12,3.35]
[1754214960591,3.22,161.16,161.13,3.35]
[1754214961194,9.4258,161.16,161.13,3.35]
[1754214961388,3.22,161.15,161.13,3.35]
[1754214962595,3.22,161.15,161.14,3.27]
[1754214966396,3.22,161.15,161.13,5.21850366]
[1754214966792,3.22,161.15,161.12,8.48850366]
[1754214966990,6.2068,161.13,161.12,8.48850366]
[1754214967297,9.7268,161.13,161.12,5.21850366]
[1754214967591,9.7271,161.12,161.11,5.21850366]
[1754214968595,9.7271,161.12,161.11,3.27]
[1754214973399,9.7271,161.12,161.11,8.48850366]
[1754214974097,9.7271,161.12,161.11,3.27]
[1754214974394,6.2071,161.12,161.1,5.21850366]
[1754214974697,9.7271,161.12,161.11,3.27]
[1754214975297,9.7271,161.12,161.11,8.48850366]
[1754214978502,3.52,161.16,161.12,3.27]
[1754214978700,3.52,161.16,161.14,3.27]
[1754214978905,3.52,161.16,161.15,3.27]
[1754214980305,9.7256,161.16,161.15,3.27]
[1754214981600,3.52,161.17,161.15,3.27]
[1754214981802,3.52,161.17,161.16,3.27]
[1754214989114,3.52,161.18,161.16,3.27]
[1754214990511,3.52,161.18,161.17,3.27]
[1754215008326,3.52,161.18,161.15,8.61850366]
[1754215008522,3.52,161.18,161.15,3.4]
[1754215008927,3.43,161.17,161.15,3.4]
[1754215009230,115.79,161.16,161.15,3.4]
[1754215013323,3.43,161.16,161.15,3.4]
[1754215018438,3.43,161.16,161.15,9.606]
[1754215019127,115.79,161.17,161.15,9.606]
[1754215019325,115.79,161.17,161.16,3.4]
[1754215019936,112.36,161.17,161.16,9.6056]
[1754215020236,3.43,161.18,161.16,3.4]
[1754215020430,115.79,161.18,161.17,3.4]
[1754215021235,115.79,161.18,161.17,9.6052]
[1754215023934,115.79,161.18,161.17,3.4]
[1754215024538,115.67,161.18,161.17,3.4]
[1754215025139,112.36,161.19,161.18,3.3]
[1754215025334,115.67,161.19,161.18,3.3]
[1754215028338,3.31,161.2,161.18,3.3]
[1754215028532,115.67,161.2,161.18,8.50548781]
[1754215028728,3.31,161.19,161.18,11.41028781]
[1754215029341,3.31,161.19,161.18,14.71028781]
[1754215029737,6.203,161.23,161.19,6.2042]
[1754215029936,115.65,161.22,161.2,3.3]
[1754215030137,3.31,161.21,161.2,3.3]
[1754215034242,3.31,161.21,161.2,9.5041]
[1754215034546,115.65,161.22,161.21,3.3]
[1754215035345,115.65,161.22,161.21,9.5037]
[1754215036247,115.65,161.22,161.21,3.3]
[1754215036450,3.31,161.21,161.19,5.20548781]
[1754215036641,3.31,161.21,161.18,8.50548781]
[1754215036837,3.31,161.21,161.18,14.70998781]
[1754215037343,3.31,161.21,161.19,3.3]
[1754215039249,9.5138,161.21,161.18,8.50548781]
[1754215039548,3.31,161.2,161.18,8.50548781]
[1754215040445,3.31,161.2,161.19,3.3]
[1754215041851,3.31,161.2,161.19,9.5044]
[1754215045652,3.31,161.2,161.18,14.71018781]
[1754215046346,3.31,161.2,161.18,11.41018781]
[1754215046651,3.31,161.2,161.19,3.3]
[1754215049447,3.31,161.19,161.17,11.41058781]
[1754215049647,3.31,161.19,161.17,14.71058781]
[1754215049850,3.31,161.19,161.17,11.41058781]
[1754215050047,3.31,161.19,161.18,3.3]
[1754215050448,3.31,161.19,161.17,8.50548781]
[1754215050653,3.31,161.19,161.17,3.3]
[1754215051050,3.31,161.19,161.18,3.3]
[1754215059954,9.5144,161.19,161.18,3.3]
[1754215060453,3.31,161.19,161.18,3.3]
[1754215062660,3.31,161.19,161.16,8.67548781]
[1754215063351,3.31,161.19,161.17,3.47]